fUSD/lending_fUSD_20240327
["ID","MTS","AMOUNT","RATE_DAILY","PERIOD"]
[320729587,1711539078701,-500.0,0.00055616,120]
[320729588,1711539078710,-500.0,0.00055616,120]
[320729589,1711539078719,-1845.88,0.00055616,120]
[320729590,1711539078729,-937.27,0.00055616,120]
[320729591,1711539078739,-1083.78,0.00055616,120]
[320729592,1711539078750,-3201.11,0.00055616,120]
[320729593,1711539078761,-2638.24,0.00055616,120]
[320729594,1711539078771,-1388.52,0.00055616,120]
[320729595,1711539078781,-4892.27,0.00055616,120]
[320729596,1711539078791,-500.0,0.00055616,120]
[320729597,1711539078801,-2480.34,0.00055616,120]
[320729598,1711539078811,-1350.19,0.00055616,120]
[320729599,1711539078821,-3142.36,0.00055616,120]
[320729600,1711539078831,-2180.01,0.00055616,120]
[320729601,1711539078840,-500.0,0.00055616,120]
[320729602,1711539078849,-1470.53,0.00055616,120]
[320729603,1711539078859,-500.0,0.00055616,120]
[320729604,1711539078868,-500.0,0.00055616,120]
[320729605,1711539078878,-500.0,0.00055616,120]
[320729606,1711539078887,-505.71,0.00055616,120]
[320729607,1711539078897,-317.92,0.00055616,120]
[320729608,1711539078907,-1659.22,0.00055616,120]
[320729609,1711539078916,-8083.93,0.00055616,120]
[320729610,1711539078925,-500.0,0.00055616,120]
[320729611,1711539078935,-2931.63,0.00055616,120]
[320729612,1711539078945,-2901.36,0.00055616,120]
[320729613,1711539078957,-541.86,0.00055616,120]
[320729614,1711539078966,-3516.57,0.00055616,120]
[320729615,1711539078977,-4166.77,0.00055616,120]
[320729616,1711539078987,-500.0,0.00055616,120]
[320729617,1711539078998,-10990.32,0.00055616,120]
[320729618,1711539079008,-151.0,0.00055616,120]
[320729619,1711539079017,-1139.26,0.00055616,120]
[320729620,1711539079026,-686.73,0.00055616,120]
[320729621,1711539079036,-1716.32,0.00055616,120]
[320729622,1711539079046,-500.0,0.00055616,120]
[320729623,1711539079055,-2230.4,0.00055616,120]
[320729624,1711539079064,-1803.38,0.00055616,120]
[320729625,1711539079073,-2528.02,0.00055616,120]
[320729626,1711539079083,-752.78,0.00055616,120]
[320729627,1711539079092,-190.24451948,0.00055705,120]
[320729628,1711539079102,-531.68,0.00055705,2]
[320729629,1711539079112,-3735.3990644,0.00055738,2]
[320729630,1711539079122,-221.1132656,0.00055738,2]
[320729631,1711539079132,-1549.9068806,0.00055776,2]
[320729632,1711539079142,-55012.7663441,0.00055776,2]
[320729633,1711539079153,-15417.1579225,0.00055776,2]
[320729634,1711539079162,-9177.203963,0.00055776,2]
[320729635,1711539079173,-151.41,0.000558,35]
[320729636,1711539079182,-150.0,0.000558,22]
[320729637,1711539079192,-150.0,0.000558,22]
[320729638,1711539079207,-150.0,0.000558,22]
[320729639,1711539079217,-636.50981946,0.00055817,120]
[320729640,1711539079229,-163.57700478,0.00055819,120]
[320729641,1711539079239,-636.50981946,0.00055826,120]
[320729642,1711539079250,-500.0,0.0005584,90]
[320729643,1711539079262,-1650.6607496,0.00055852,2]
[320729644,1711539079273,-1751.4146186,0.00055852,2]
[320729645,1711539079282,-42836.4143042,0.00055852,2]
[320729646,1711539079292,-30660.0622643,0.00055852,2]
[320729647,1711539079303,-2897.9989047,0.00055852,2]
[320729648,1711539079313,-2060.5987451,0.00055852,2]
[320729649,1711539079322,-11960.9460739,0.00055852,2]
[320729650,1711539079332,-8504.7342254,0.00055852,2]
[320729651,1711539079344,-7119.862316,0.00055852,2]
[320729652,1711539079354,-5062.5206689,0.00055852,2]
[320729653,1711539079364,-221.1132656,0.00055852,2]
[320729654,1711539079375,-221.1132656,0.00055852,2]
[320729655,1711539079385,-151.0,0.00055852,120]
[320729656,1711539079395,-507.0,0.00055863,120]
[320729657,1711539079404,-800.35,0.00055886,2]
[320729658,1711539079415,-205.37545792,0.00055886,4]
[320729659,1711539079425,-2960.98427374,0.00055886,4]
[320729660,1711539079435,-200.8209284,0.00055887,4]
[320729661,1711539079445,-2000.0,0.0005589,120]
[320729662,1711539079459,-895.23,0.0005589,120]
[320729663,1711539079469,-575.28,0.0005589,120]
[320729664,1711539079480,-292.34,0.0005589,120]
[320729665,1711539079490,-500.0,0.0005589,120]
[320729666,1711539079500,-500.0,0.0005589,120]
[320729667,1711539079512,-500.0,0.0005589,120]
[320729668,1711539079521,-500.0,0.0005589,120]
[320729669,1711539079531,-500.0,0.0005589,120]
[320729670,1711539079541,-641.38,0.0005589,120]
[320729671,1711539079550,-500.0,0.0005589,120]
[320729672,1711539079560,-645.26,0.0005589,120]
[320729673,1711539079570,-563.96,0.0005589,120]
[320729674,1711539079581,-500.0,0.0005589,120]
[320729675,1711539079591,-474.82,0.0005589,120]
[320729676,1711539079602,-500.0,0.0005589,120]
[320729677,1711539079611,-500.0,0.0005589,120]
[320729678,1711539079740,-500.0,0.0005589,120]
[320729679,1711539079752,-500.0,0.0005589,120]
[320729680,1711539079762,-151.0,0.0005589,120]
[320729681,1711539079771,-500.0,0.0005589,120]
[320729682,1711539079781,-500.0,0.0005589,120]
[320729683,1711539079791,-500.0,0.0005589,120]
[320729684,1711539079801,-500.0,0.0005589,120]
[320729685,1711539079811,-500.0,0.0005589,120]
[320729686,1711539079821,-500.0,0.0005589,120]
[320729687,1711539079831,-500.0,0.0005589,120]
[320729688,1711539079841,-610.8,0.0005589,120]
[320729689,1711539079850,-500.0,0.0005589,120]
[320729690,1711539079860,-392.18,0.0005589,120]
[320729691,1711539079870,-500.0,0.0005589,120]
[320729692,1711539079879,-500.0,0.0005589,120]
[320729693,1711539079889,-500.0,0.0005589,120]
[320729694,1711539079898,-500.0,0.0005589,120]
[320729695,1711539079908,-151.0,0.0005589,120]
[320729696,1711539079918,-500.0,0.0005589,120]
[320729697,1711539079927,-500.0,0.0005589,120]
[320729698,1711539079937,-976.2,0.0005589,120]
[320729699,1711539079946,-500.0,0.0005589,120]
[320729700,1711539079959,-204.38,0.0005589,120]
[320729701,1711539079969,-500.0,0.0005589,120]
[320729702,1711539079978,-531.34,0.0005589,120]
[320729703,1711539079988,-500.0,0.0005589,120]
[320729704,1711539079997,-500.0,0.0005589,120]
[320729705,1711539080007,-500.0,0.0005589,120]
[320729706,1711539080018,-575.24,0.0005589,120]
[320729707,1711539080028,-500.0,0.0005589,120]
[320729708,1711539080037,-500.0,0.0005589,120]
[320729709,1711539080047,-500.0,0.0005589,120]
[320729710,1711539080057,-500.0,0.0005589,120]
[320729711,1711539080067,-500.0,0.0005589,120]
[320729712,1711539080077,-503.38,0.0005589,120]
[320729713,1711539080087,-500.0,0.0005589,120]
[320729714,1711539080097,-544.36,0.0005589,120]
[320729715,1711539080107,-656.62,0.0005589,120]
[320729716,1711539080117,-500.0,0.0005589,120]
[320729717,1711539080128,-1108.32,0.0005589,120]
[320729718,1711539080138,-786.05,0.0005589,120]
[320729719,1711539080149,-500.0,0.0005589,120]
[320729720,1711539080159,-500.0,0.0005589,120]
[320729721,1711539080169,-500.0,0.0005589,120]
[320729722,1711539080179,-289.7,0.0005589,120]
[320729723,1711539080189,-500.0,0.0005589,120]
[320729724,1711539080200,-500.0,0.0005589,120]
[320729725,1711539080212,-647.76,0.0005589,120]
[320729726,1711539080221,-582.28,0.0005589,120]
[320729727,1711539080232,-500.0,0.0005589,120]
[320729728,1711539080241,-500.0,0.0005589,120]
[320729729,1711539080257,-500.0,0.0005589,120]
[320729730,1711539080267,-500.0,0.0005589,120]
[320729731,1711539080277,-500.0,0.0005589,120]
[320729732,1711539080287,-500.0,0.0005589,120]
[320729733,1711539080296,-500.0,0.0005589,120]
[320729734,1711539080306,-500.0,0.0005589,120]
[320729735,1711539080316,-500.0,0.0005589,120]
[320729736,1711539080326,-499.0,0.0005589,120]
[320729737,1711539080338,-500.0,0.0005589,120]
[320729738,1711539080348,-500.0,0.0005589,120]
[320729739,1711539080358,-500.0,0.0005589,120]
[320729740,1711539080368,-500.0,0.0005589,120]
[320729741,1711539080377,-500.0,0.0005589,120]
[320729742,1711539080387,-500.0,0.0005589,120]
[320729743,1711539080397,-500.0,0.0005589,120]
[320729744,1711539080407,-500.0,0.0005589,120]
[320729745,1711539080417,-500.0,0.0005589,120]
[320729746,1711539080427,-500.0,0.0005589,120]
[320729747,1711539080436,-500.0,0.0005589,120]
[320729748,1711539080446,-500.0,0.0005589,120]
[320729749,1711539080459,-500.0,0.0005589,120]
[320729750,1711539080469,-500.0,0.0005589,120]
[320729751,1711539080479,-500.0,0.0005589,120]
[320729752,1711539080489,-500.0,0.0005589,120]
[320729753,1711539080500,-500.0,0.0005589,120]
[320729754,1711539080509,-500.0,0.0005589,120]
[320729755,1711539080519,-285.86,0.0005589,120]
[320729756,1711539080529,-500.0,0.0005589,120]
[320729757,1711539080539,-650.65,0.0005589,120]
[320729758,1711539080549,-500.0,0.0005589,120]
[320729759,1711539080559,-151.0,0.0005589,120]
[320729760,1711539080569,-500.0,0.0005589,120]
[320729761,1711539080580,-500.0,0.0005589,120]
[320729762,1711539080589,-373.76,0.0005589,120]
[320729763,1711539080599,-500.0,0.0005589,120]
[320729764,1711539080609,-666.49,0.0005589,120]
[320729765,1711539080618,-500.0,0.0005589,120]
[320729766,1711539080628,-512.61,0.0005589,120]
[320729767,1711539080638,-500.0,0.0005589,120]
[320729768,1711539080647,-500.0,0.0005589,120]
[320729769,1711539080657,-500.0,0.0005589,120]
[320729770,1711539080667,-500.0,0.0005589,120]
[320729771,1711539080677,-500.0,0.0005589,120]
[320729772,1711539080687,-500.0,0.0005589,120]
[320729773,1711539080697,-281.47206002,0.0005589,120]
[320729774,1711539080712,-500.0,0.0005589,120]
[320729775,1711539080723,-610.66,0.0005589,120]
[320729776,1711539080733,-544.48,0.0005589,120]
[320729777,1711539080743,-500.0,0.0005589,120]
[320729778,1711539080753,-500.0,0.0005589,120]
[320729779,1711539080763,-1264.52,0.0005589,120]
[320729780,1711539080773,-500.0,0.0005589,120]
[320729781,1711539080783,-564.14,0.0005589,120]
[320729782,1711539080794,-617.82,0.0005589,120]
[320729783,1711539080803,-832.09,0.0005589,120]
[320729784,1711539080813,-151.0,0.0005589,14]
[320729785,1711539080823,-921.37,0.0005589,120]
[320729786,1711539080833,-695.47,0.0005589,120]
[320729787,1711539080843,-1458.74,0.0005589,120]
[320729788,1711539080853,-500.0,0.0005589,120]
[320729789,1711539080862,-151.0,0.0005589,120]
[320729790,1711539080871,-500.0,0.0005589,120]
[320729791,1711539080881,-1146.87,0.0005589,120]
[320729792,1711539080890,-500.0,0.0005589,120]
[320729793,1711539080900,-597.38,0.0005589,120]
[320729794,1711539080909,-2719.96,0.0005589,120]
[320729795,1711539080919,-500.0,0.0005589,120]
[320729796,1711539080929,-1170.95,0.0005589,120]
[320729797,1711539080938,-500.0,0.0005589,120]
[320729798,1711539080948,-373.75,0.0005589,120]
[320729799,1711539080962,-500.0,0.0005589,120]
[320729800,1711539080973,-500.0,0.0005589,120]
[320729801,1711539080983,-1986.6,0.0005589,120]
[320729802,1711539080993,-500.0,0.0005589,120]
[320729803,1711539081003,-884.38,0.0005589,120]
[320729804,1711539081012,-1057.95,0.0005589,120]
[320729805,1711539081022,-151.0,0.0005589,30]
[320729806,1711539081032,-500.0,0.0005589,120]
[320729807,1711539081042,-616.91,0.0005589,120]
[320729808,1711539081052,-537.22,0.0005589,120]
[320729809,1711539081063,-533.04,0.0005589,120]
[320729810,1711539081073,-702.45,0.0005589,120]
[320729811,1711539081083,-5471.51,0.0005589,120]
[320729812,1711539081093,-587.11,0.0005589,120]
[320729813,1711539081104,-500.0,0.0005589,120]
[320729814,1711539081114,-500.0,0.0005589,120]
[320729815,1711539081124,-500.0,0.0005589,120]
[320729816,1711539081134,-500.0,0.0005589,120]
[320729817,1711539081144,-2128.3,0.0005589,120]
[320729818,1711539081154,-500.0,0.0005589,120]
[320729819,1711539081164,-500.0,0.0005589,120]
[320729820,1711539081173,-500.0,0.0005589,120]
[320729821,1711539081183,-961.96,0.0005589,120]
[320729822,1711539081193,-792.02,0.0005589,120]
[320729823,1711539081209,-613.31,0.0005589,120]
[320729824,1711539081219,-1258.8,0.0005589,120]
[320729825,1711539081230,-931.2,0.0005589,120]
[320729826,1711539081240,-663.5,0.0005589,120]
[320729827,1711539081251,-500.0,0.0005589,120]
[320729828,1711539081265,-1126.29,0.0005589,120]
[320729829,1711539081277,-905.93,0.0005589,120]
[320729830,1711539081289,-151.0,0.0005589,120]
[320729831,1711539081299,-596.37,0.0005589,120]
[320729832,1711539081310,-500.0,0.0005589,120]
[320729833,1711539081322,-500.0,0.0005589,120]
[320729834,1711539081333,-500.0,0.0005589,120]
[320729835,1711539081344,-1145.15,0.0005589,120]
[320729836,1711539081355,-1047.43,0.0005589,120]
[320729837,1711539081366,-500.0,0.0005589,120]
[320729838,1711539081376,-1079.19,0.0005589,120]
[320729839,1711539081386,-500.0,0.0005589,120]
[320729840,1711539081396,-151.0,0.0005589,120]
[320729841,1711539081406,-500.0,0.0005589,120]
[320729842,1711539081416,-500.0,0.0005589,120]
[320729843,1711539081426,-151.0,0.0005589,120]
[320729844,1711539081435,-500.0,0.0005589,120]
[320729845,1711539081444,-1050.1,0.0005589,120]
[320729846,1711539081461,-500.0,0.0005589,120]
[320729847,1711539081472,-500.0,0.0005589,120]
[320729848,1711539081482,-668.88,0.0005589,120]
[320729849,1711539081493,-500.0,0.0005589,120]
[320729850,1711539081503,-798.22,0.0005589,120]
[320729851,1711539081514,-500.0,0.0005589,120]
[320729852,1711539081524,-865.88,0.0005589,120]
[320729853,1711539081535,-500.0,0.0005589,120]
[320729854,1711539081546,-500.0,0.0005589,120]
[320729855,1711539081556,-495.1,0.0005589,120]
[320729856,1711539081567,-500.0,0.0005589,120]
[320729857,1711539081578,-500.0,0.0005589,120]
[320729858,1711539081589,-493.74,0.0005589,120]
[320729859,1711539081598,-805.48,0.0005589,120]
[320729860,1711539081610,-698.77,0.0005589,120]
[320729861,1711539081620,-895.29,0.0005589,120]
[320729862,1711539081630,-2904.63,0.0005589,120]
[320729863,1711539081641,-500.0,0.0005589,120]
[320729864,1711539081651,-575.0,0.0005589,120]
[320729865,1711539081662,-1059.6,0.0005589,120]
[320729866,1711539081673,-624.76,0.0005589,120]
[320729867,1711539081684,-566.16,0.0005589,120]
[320729868,1711539081695,-500.0,0.0005589,120]
[320729869,1711539081710,-500.0,0.0005589,120]
[320729870,1711539081720,-500.0,0.0005589,120]
[320729871,1711539081729,-596.27,0.0005589,120]
[320729872,1711539081739,-511.44,0.0005589,120]
[320729873,1711539081748,-500.0,0.0005589,120]
[320729874,1711539081758,-2461.83,0.0005589,120]
[320729875,1711539081767,-670.39,0.0005589,120]
[320729876,1711539081777,-500.0,0.0005589,120]
[320729877,1711539081787,-1096.84,0.0005589,120]
[320729878,1711539081796,-730.57,0.0005589,120]
[320729879,1711539081806,-526.24,0.0005589,120]
[320729880,1711539081816,-813.47,0.0005589,120]
[320729881,1711539081826,-500.0,0.0005589,120]
[320729882,1711539081837,-306.68,0.0005589,120]
[320729883,1711539081848,-500.0,0.0005589,120]
[320729884,1711539081859,-982.22,0.0005589,120]
[320729885,1711539081869,-2323.15,0.0005589,120]
[320729886,1711539081879,-952.22,0.0005589,120]
[320729887,1711539081890,-1090.65,0.0005589,120]
[320729888,1711539081900,-2118.58,0.0005589,120]
[320729889,1711539081909,-819.74,0.0005589,120]
[320729890,1711539081919,-500.0,0.0005589,120]
[320729891,1711539081930,-500.0,0.0005589,120]
[320729892,1711539081940,-500.0,0.0005589,120]
[320729893,1711539081950,-316.78,0.0005589,120]
[320729894,1711539081963,-500.0,0.0005589,120]
[320729895,1711539081973,-500.0,0.0005589,120]
[320729896,1711539081983,-500.0,0.0005589,120]
[320729897,1711539081993,-680.58,0.0005589,120]
[320729898,1711539082002,-1006.99,0.0005589,120]
[320729899,1711539082012,-500.0,0.0005589,120]
[320729900,1711539082021,-2012.56,0.0005589,120]
[320729901,1711539082031,-500.0,0.0005589,120]
[320729902,1711539082040,-559.0,0.0005589,120]
[320729903,1711539082050,-525.09,0.0005589,120]
[320729904,1711539082059,-327.66,0.0005589,120]
[320729905,1711539082069,-1027.05,0.0005589,120]
[320729906,1711539082079,-775.63,0.0005589,120]
[320729907,1711539082089,-151.0,0.0005589,120]
[320729908,1711539082098,-151.0,0.0005589,120]
[320729909,1711539082108,-909.15,0.0005589,120]
[320729910,1711539082117,-669.48,0.0005589,120]
[320729911,1711539082126,-2014.61,0.0005589,120]
[320729912,1711539082136,-500.0,0.0005589,120]
[320729913,1711539082145,-613.39,0.0005589,30]
[320729914,1711539082155,-151.0,0.0005589,120]
[320729915,1711539082165,-500.0,0.0005589,120]
[320729916,1711539082174,-151.0,0.0005589,120]
[320729917,1711539082184,-500.0,0.0005589,120]
[320729918,1711539082193,-227.859135,0.0005589,120]
[320729919,1711539082204,-500.0,0.0005589,120]
[320729920,1711539082215,-670.15,0.0005589,120]
[320729921,1711539082224,-500.0,0.0005589,120]
[320729922,1711539082234,-500.0,0.0005589,120]
[320729923,1711539082244,-613.0,0.0005589,120]
[320729924,1711539082254,-500.0,0.0005589,120]
[320729925,1711539082266,-741.01,0.0005589,120]
[320729926,1711539082277,-715.82,0.0005589,120]
[320729927,1711539082287,-500.0,0.0005589,120]
[320729928,1711539082297,-500.0,0.0005589,120]
[320729929,1711539082307,-693.91,0.0005589,120]
[320729930,1711539082317,-500.0,0.0005589,120]
[320729931,1711539082326,-500.0,0.0005589,120]
[320729932,1711539082335,-1436.63,0.0005589,120]
[320729933,1711539082347,-788.63,0.0005589,120]
[320729934,1711539082356,-500.0,0.0005589,120]
[320729935,1711539082366,-852.33,0.0005589,120]
[320729936,1711539082375,-500.0,0.0005589,120]
[320729937,1711539082385,-500.0,0.0005589,120]
[320729938,1711539082394,-500.0,0.0005589,120]
[320729939,1711539082404,-500.0,0.0005589,120]
[320729940,1711539082413,-608.04,0.0005589,120]
[320729941,1711539082422,-500.0,0.0005589,120]
[320729942,1711539082432,-500.0,0.0005589,60]
[320729943,1711539082442,-500.0,0.0005589,60]
[320729944,1711539082588,-632.68,0.0005589,120]
[320729945,1711539082598,-500.0,0.0005589,120]
[320729946,1711539082607,-500.0,0.0005589,60]
[320729947,1711539082617,-500.0,0.0005589,60]
[320729948,1711539082626,-524.62,0.0005589,120]
[320729949,1711539082635,-620.43,0.0005589,120]
[320729950,1711539082644,-818.9,0.0005589,120]
[320729951,1711539082654,-2063.63,0.0005589,120]
[320729952,1711539082663,-1004.28,0.0005589,120]
[320729953,1711539082672,-2011.71,0.0005589,120]
[320729954,1711539082682,-807.51,0.0005589,120]
[320729955,1711539082691,-500.0,0.0005589,120]
[320729956,1711539082700,-500.0,0.0005589,120]
[320729957,1711539082711,-500.0,0.0005589,120]
[320729958,1711539082720,-500.0,0.0005589,120]
[320729959,1711539082729,-763.33,0.0005589,120]
[320729960,1711539082738,-755.18,0.0005589,120]
[320729961,1711539082748,-487.81,0.0005589,120]
[320729962,1711539082757,-500.0,0.0005589,120]
[320729963,1711539082766,-842.7,0.0005589,120]
[320729964,1711539082776,-713.05,0.0005589,120]
[320729965,1711539082785,-2308.15,0.0005589,120]
[320729966,1711539082794,-500.0,0.0005589,120]
[320729967,1711539082804,-500.0,0.0005589,120]
[320729968,1711539082813,-500.0,0.0005589,120]
[320729969,1711539082822,-547.62,0.0005589,120]
[320729970,1711539082832,-500.0,0.0005589,120]
[320729971,1711539082841,-676.12,0.0005589,120]
[320729972,1711539082850,-500.0,0.0005589,120]
[320729973,1711539082859,-849.59,0.0005589,120]
[320729974,1711539082868,-500.0,0.0005589,120]
[320729975,1711539082877,-500.0,0.0005589,120]
[320729976,1711539082887,-677.22,0.0005589,120]
[320729977,1711539082898,-500.0,0.0005589,120]
[320729978,1711539082909,-500.0,0.0005589,120]
[320729979,1711539082918,-344.72,0.0005589,120]
[320729980,1711539082928,-500.0,0.0005589,120]
[320729981,1711539082937,-500.0,0.0005589,120]
[320729982,1711539082947,-800.48,0.0005589,120]
[320729983,1711539082958,-988.02,0.0005589,120]
[320729984,1711539082967,-500.0,0.0005589,120]
[320729985,1711539082976,-535.04,0.0005589,120]
[320729986,1711539082986,-930.48,0.0005589,120]
[320729987,1711539082995,-500.0,0.0005589,120]
[320729988,1711539083005,-500.0,0.0005589,120]
[320729989,1711539083014,-877.53,0.0005589,120]
[320729990,1711539083024,-2082.72,0.0005589,120]
[320729991,1711539083033,-500.0,0.0005589,120]
[320729992,1711539083043,-520.53,0.0005589,120]
[320729993,1711539083052,-500.0,0.0005589,120]
[320729994,1711539083062,-1016.45,0.0005589,120]
[320729995,1711539083071,-525.83,0.0005589,120]
[320729996,1711539083081,-500.0,0.0005589,120]
[320729997,1711539083089,-500.0,0.0005589,120]
[320729998,1711539083099,-500.0,0.0005589,120]
[320729999,1711539083109,-1436.62,0.0005589,120]
[320730000,1711539083118,-2558.6,0.0005589,120]
[320730001,1711539083127,-2044.63,0.0005589,120]
[320730002,1711539083137,-500.0,0.0005589,120]
[320730003,1711539083147,-545.88,0.0005589,120]
[320730004,1711539083156,-783.0,0.0005589,120]
[320730005,1711539083166,-3085.25,0.0005589,120]
[320730006,1711539083175,-500.0,0.0005589,120]
[320730007,1711539083184,-500.0,0.0005589,120]
[320730008,1711539083193,-839.83,0.0005589,120]
[320730009,1711539083205,-521.11347212,0.0005589,120]
[320730010,1711539083214,-735.26,0.0005589,120]
[320730011,1711539083223,-500.0,0.0005589,120]
[320730012,1711539083232,-500.0,0.0005589,7]
[320730013,1711539083242,-3173.89,0.0005589,120]
[320730014,1711539083254,-1365.01,0.0005589,120]
[320730015,1711539083264,-1347.96,0.0005589,120]
[320730016,1711539083274,-464.31400705,0.0005589,120]
[320730017,1711539083283,-340.34,0.0005589,120]
[320730018,1711539083297,-500.0,0.0005589,120]
[320730019,1711539083306,-500.0,0.0005589,120]
[320730020,1711539083316,-5132.44,0.0005589,120]
[320730021,1711539083325,-558.52,0.0005589,120]
[320730022,1711539083336,-500.0,0.0005589,120]
[320730023,1711539083347,-7133.78,0.0005589,120]
[320730024,1711539083356,-579.76,0.0005589,120]
[320730025,1711539083366,-500.0,0.0005589,120]
[320730026,1711539083376,-1944.43,0.0005589,120]
[320730027,1711539083386,-500.0,0.0005589,120]
[320730028,1711539083395,-6097.44,0.0005589,120]
[320730029,1711539083405,-5109.09,0.0005589,120]
[320730030,1711539083415,-545.62,0.0005589,120]
[320730031,1711539083425,-663.4,0.0005589,120]
[320730032,1711539083435,-500.0,0.0005589,120]
[320730033,1711539083446,-500.0,0.0005589,120]
[320730034,1711539083459,-22670.34,0.0005589,120]
[320730035,1711539083469,-2453.89,0.0005589,120]
[320730036,1711539083479,-500.0,0.0005589,120]
[320730037,1711539083489,-2612.82,0.0005589,120]
[320730038,1711539083499,-7956.37,0.0005589,120]
[320730039,1711539083509,-2520.37,0.0005589,120]
[320730040,1711539083519,-1096.81,0.0005589,120]
[320730041,1711539083529,-500.0,0.0005589,120]
[320730042,1711539083538,-628.48,0.0005589,120]
[320730043,1711539083548,-1032.54,0.0005589,120]
[320730044,1711539083557,-500.0,0.0005589,120]
[320730045,1711539083567,-503.76,0.0005589,120]
[320730046,1711539083577,-500.0,0.0005589,120]
[320730047,1711539083586,-2884.81,0.0005589,120]
[320730048,1711539083596,-3753.0,0.0005589,120]
[320730049,1711539083606,-500.0,0.0005589,120]
[320730050,1711539083615,-9397.34,0.0005589,120]
[320730051,1711539083625,-5025.57,0.0005589,120]
[320730052,1711539083634,-43977.12,0.0005589,120]
[320730053,1711539083644,-500.0,0.0005589,120]
[320730054,1711539083654,-7954.08,0.0005589,120]
[320730055,1711539083663,-500.0,0.0005589,120]
[320730056,1711539083673,-500.0,0.0005589,120]
[320730057,1711539083682,-500.0,0.0005589,120]
[320730058,1711539083692,-832.53,0.0005589,120]
[320730059,1711539083701,-5423.8,0.0005589,120]
[320730060,1711539083713,-5589.81,0.0005589,120]
[320730061,1711539083722,-3477.52,0.0005589,120]
[320730062,1711539083731,-500.0,0.0005589,120]
[320730063,1711539083741,-3295.4,0.0005589,120]
[320730064,1711539083750,-500.0,0.0005589,120]
[320730065,1711539083759,-79143.13,0.0005589,120]
[320730066,1711539083768,-1554.43,0.0005589,120]
[320730067,1711539083778,-4233.1,0.0005589,120]
[320730068,1711539083789,-500.0,0.0005589,120]
[320730069,1711539083799,-516.38,0.0005589,120]
[320730070,1711539083808,-21230.92,0.0005589,120]
[320730071,1711539083818,-1796.45,0.0005589,120]
[320730072,1711539083828,-1488.59,0.0005589,120]
[320730073,1711539083838,-1590.82,0.0005589,120]
[320730074,1711539083848,-4270.02,0.0005589,120]
[320730075,1711539083858,-475.76,0.0005589,120]
[320730076,1711539083868,-1416.51,0.0005589,120]
[320730077,1711539083878,-500.0,0.0005589,120]
[320730078,1711539083887,-1436.29,0.0005589,120]
[320730079,1711539083897,-1000.0,0.0005589,14]
[320730080,1711539083906,-4828.26,0.0005589,120]
[320730081,1711539083916,-2733.23,0.0005589,120]
[320730082,1711539083925,-2699.02,0.0005589,120]
[320730083,1711539083935,-4103.23,0.0005589,120]
[320730084,1711539083944,-794.6,0.0005589,120]
[320730085,1711539083954,-2649.26,0.0005589,120]
[320730086,1711539083964,-500.0,0.0005589,120]